[Event "WSTCC-65 2020"]
[Site "Prague"]
[Date "2020.03.10"]
[Round "5.40"]
[White "Fencl, Vaclav"]
[Black "Araya Umana, Carlos"]
[Result "1-0"]
[ECO "A48"]
[WhiteElo "1857"]
[BlackElo "1914"]
[Annotator "ChessBase"]
[PlyCount "65"]
[EventDate "2020.03.06"]
[EventType "team-tourn"]
[EventCountry "CZE"]
[SourceTitle "playchess.com"]
[Source "ChessBase"]
[SourceQuality "1"]
[TimeControl "40/5400+30:1800+30"]

1. d4 {[%emt 0:00:00]} Nf6 2. Nf3 {[%emt 0:00:00]} g6 {[%emt 0:00:54]} 3. Bg5 {[%emt 0:01:41]} Bg7 {[%emt 0:00:09]} 4. e3 {[%emt 0:00:25]} O-O {[%emt 0:04:11]} 5. Bd3 {[%emt 0:00:36]} c5 {[%emt 0:00:26]} 6. O-O {[%emt 0:00:44]} b6 {[%emt 0:01:30]} 7. Nbd2 {[%emt 0:00:45]} Bb7 {[%emt 0:00:15]} 8. c3 {[%emt 0:00:56]} d6 {[%emt 0:03:34]} 9. Re1 {[%emt 0:01:59]} Nbd7 {[%emt 0:11:03]} 10. e4 {[%emt 0:01:58]} e5 {[%emt 0:05:15]} 11. d5 {[%emt 0:00:46]} h6 {[%emt 0:01:15]} 12. Bh4 {[%emt 0:03:10]} g5 {[%emt 0:01:48]} 13. Bg3 {[%emt 0:00:13]} Nh5 {[%emt 0:02:23]} 14. Nxe5 {[%emt 0:13:38]} Nxg3 {[%emt 0:00:14]} 15. Nxd7 {[%emt 0:00:09]} Qxd7 {[%emt 0:01:09]} 16. hxg3 {[%emt 0:00:06]} Be5 {[%emt 0:05:24]} 17. Qh5 {[%emt 0:04:38]} Kg7 {[%emt 0:00:39]} 18. Nc4 {[%emt 0:01:37]} Rae8 {[%emt 0:00:50]} 19. Ne3 {[%emt 0:00:20]} Rh8 {[%emt 0:03:54]} 20. Nf5+ {[%emt 0:01:03]} Kf8 {[%emt 0:00:13]} 21. Qe2 {[%emt 0:09:43]} Ra8 {[%emt 0:03:24]} 22. Qg4 {[%emt 0:05:46]} Qd8 {[%emt 0:01:32]} 23. f4 {[%emt 0:01:20]} h5 {[%emt 0:02:44]} 24. Qf3 {[%emt 0:01:20]} Bf6 {[%emt 0:01:44]} 25. Rf1 {[%emt 0:05:59]} g4 {[%emt 0:01:10]} 26. Qe2 {[%emt 0:01:44]} Bc8 {[%emt 0:05:52]} 27. e5 {[%emt 0:05:45]} Bxf5 {[%emt 0:00:42]} 28. Bxf5 {[%emt 0:00:03]} Bg7 {[%emt 0:02:27]} 29. e6 {[%emt 0:02:51]} Qe7 {[%emt 0:01:52]} 30. Rae1 {[%emt 0:04:06]} Re8 {[%emt 0:04:42]} 31. Qd3 {[%emt 0:02:40]} Bf6 {[%emt 0:15:45]} 32. exf7 {[%emt 0:03:37]} Qxe1 {[%emt 0:00:19]} 33. Rxe1 {[%emt 0:00:26]} 1-0

[Event "WSTCC-65 2020"]
[Site "Prague"]
[Date "2020.03.10"]
[Round "5.41"]
[White "Pribyl, Josef"]
[Black "Watzka, Horst"]
[Result "1/2-1/2"]
[ECO "A02"]
[WhiteElo "2225"]
[BlackElo "2166"]
[Annotator "ChessBase"]
[PlyCount "22"]
[EventDate "2020.03.06"]
[EventType "team-tourn"]
[EventCountry "CZE"]
[SourceTitle "playchess.com"]
[Source "ChessBase"]
[SourceQuality "1"]
[TimeControl "40/5400+30:1800+30"]

1. f4 {[%emt 0:00:00]} c5 {[%emt 0:02:47]} 2. Nf3 {[%emt 0:00:00]} Nc6 {[%emt 0:00:16]} 3. b3 {[%emt 0:00:13]} d6 {[%emt 0:01:38]} 4. Bb2 {[%emt 0:00:33]} Nf6 {[%emt 0:03:06]} 5. e3 {[%emt 0:05:45]} g6 {[%emt 0:01:46]} 6. d4 {[%emt 0:04:09]} cxd4 {[%emt 0:03:49]} 7. exd4 {[%emt 0:02:51]} Bg7 {[%emt 0:00:46]} 8. Nc3 {[%emt 0:06:59]} O-O {[%emt 0:00:38]} 9. Be2 {[%emt 0:02:51]} Bf5 {[%emt 0:04:05]} 10. O-O {[%emt 0:00:27]} Rc8 {[%emt 0:00:41]} 11. a3 {[%emt 0:02:13]} a6 {[%emt 0:03:22]} 1/2-1/2

[Event "WSTCC-65 2020"]
[Site "Prague"]
[Date "2020.03.10"]
[Round "5.43"]
[White "Michenka, Jozef"]
[Black "Pitzl, Konstantinos"]
[Result "1-0"]
[ECO "E70"]
[WhiteElo "2291"]
[BlackElo "2023"]
[Annotator "ChessBase"]
[PlyCount "87"]
[EventDate "2020.03.06"]
[EventType "team-tourn"]
[EventCountry "CZE"]
[SourceTitle "playchess.com"]
[Source "ChessBase"]
[SourceQuality "1"]
[TimeControl "40/5400+30:1800+30"]

1. d4 {[%emt 0:00:00]} Nf6 {[%emt 0:00:00]} 2. c4 {[%emt 0:00:00]} g6 {[%emt 0:00:00]} 3. Nc3 {[%emt 0:00:00]} Bg7 {[%emt 0:00:00]} 4. e4 {[%emt 0:00:05]} d6 {[%emt 0:00:01]} 5. Bd3 {[%emt 0:01:58]} O-O {[%emt 0:00:08]} 6. Nge2 {[%emt 0:00:07]} e5 {[%emt 0:00:11]} 7. d5 {[%emt 0:00:09]} a5 {[%emt 0:00:27]} 8. O-O {[%emt 0:00:55]} Na6 {[%emt 0:00:29]} 9. h3 {[%emt 0:01:08]} Nd7 {[%emt 0:00:29]} 10. Be3 {[%emt 0:01:44]} f5 {[%emt 0:04:57]} 11. exf5 {[%emt 0:00:24]} gxf5 {[%emt 0:00:09]} 12. f4 {[%emt 0:00:24]} Nac5 {[%emt 0:00:38]} 13. Bc2 {[%emt 0:00:50]} e4 {[%emt 0:00:22]} 14. Bd4 {[%emt 0:01:36]} Nf6 {[%emt 0:01:25]} 15. Qd2 {[%emt 0:01:25]} b6 {[%emt 0:13:41]} 16. Nd1 {[%emt 0:04:19]} Qe8 {[%emt 0:06:15]} 17. Ne3 {[%emt 0:01:05]} Qg6 {[%emt 0:00:35]} 18. b3 {[%emt 0:03:41]} Bd7 {[%emt 0:00:34]} 19. a3 {[%emt 0:01:44]} a4 {[%emt 0:14:01]} 20. b4 {[%emt 0:00:23]} Nd3 {[%emt 0:00:29]} 21. Bxd3 {[%emt 0:06:11]} exd3 {[%emt 0:00:12]} 22. Qxd3 {[%emt 0:00:06]} Rae8 {[%emt 0:00:26]} 23. Rf3 {[%emt 0:07:21]} Ne4 {[%emt 0:03:21]} 24. Kh2 {[%emt 0:09:47]} Rf7 {[%emt 0:08:49]} 25. Rg1 {[%emt 0:04:33]} h5 {[%emt 0:00:44]} 26. g3 {[%emt 0:03:26]} Qh7 {[%emt 0:02:22]} 27. Ng2 {[%emt 0:04:19]} Rfe7 {[%emt 0:02:28]} 28. Bxg7 {[%emt 0:02:18]} Rxg7 {[%emt 0:02:03]} 29. Nh4 {[%emt 0:01:24]} Rge7 {[%emt 0:00:52]} 30. Nd4 {[%emt 0:01:36]} Kf7 {[%emt 0:07:07]} 31. Rg2 {[%emt 0:00:41]} Kf6 {[%emt 0:00:31]} 32. Re2 {[%emt 0:00:34]} Kf7 {[%emt 0:05:43]} 33. Rfe3 {[%emt 0:03:57]} Kg8 {[%emt 0:02:09]} 34. Qc2 {[%emt 0:19:09]} Qf7 {[%emt 0:01:42]} 35. Qb2 {[%emt 0:09:50]} Kh7 {[%emt 0:01:36]} 36. Ndf3 {[%emt 0:01:43]} Qg7 {[%emt 0:02:58]} 37. Ng5+ {[%emt 0:04:16]} Kg8 {[%emt 0:00:16]} 38. Qxg7+ {[%emt 0:01:53]} Kxg7 {[%emt 0:00:16]} 39. Ne6+ {[%emt 0:03:07]} Bxe6 {[%emt 0:00:30]} 40. dxe6 {[%emt 0:00:00]} Kf6 {[%emt 0:00:00]} 41. Nxf5 {[%emt 0:00:28]} Rxe6 {[%emt 0:01:08]} 42. Nd4 {[%emt 0:03:24]} R6e7 {[%emt 0:03:45]} 43. Nc6 {[%emt 0:00:09]} Re6 {[%emt 0:00:36]} 44. f5 {[%emt 0:00:14]} 1-0

[Event "WSTCC-65 2020"]
[Site "Prague"]
[Date "2020.03.10"]
[Round "5.45"]
[White "Gurtovoi, Borys"]
[Black "Holst, Per"]
[Result "1/2-1/2"]
[ECO "A13"]
[WhiteElo "1704"]
[BlackElo "2152"]
[Annotator "ChessBase"]
[PlyCount "88"]
[EventDate "2020.03.06"]
[EventType "team-tourn"]
[EventCountry "CZE"]
[SourceTitle "playchess.com"]
[Source "ChessBase"]
[SourceQuality "1"]
[TimeControl "40/5400+30:1800+30"]

1. Nf3 {[%emt 0:02:39]} e6 {[%emt 0:00:00]} 2. g3 {[%emt 0:00:17]} d5 {[%emt 0:00:00]} 3. c4 {[%emt 0:00:13]} Nf6 {[%emt 0:00:06]} 4. Bg2 {[%emt 0:00:43]} c5 {[%emt 0:01:05]} 5. O-O {[%emt 0:01:22]} Nc6 {[%emt 0:00:34]} 6. cxd5 {[%emt 0:00:28]} Nxd5 {[%emt 0:00:24]} 7. d4 {[%emt 0:00:42]} Nf6 {[%emt 0:08:56]} 8. dxc5 {[%emt 0:03:26]} Qxd1 {[%emt 0:00:40]} 9. Rxd1 {[%emt 0:00:02]} Bxc5 {[%emt 0:00:16]} 10. Nc3 {[%emt 0:00:27]} O-O {[%emt 0:04:37]} 11. Na4 {[%emt 0:01:02]} Be7 {[%emt 0:00:44]} 12. Bf4 {[%emt 0:00:42]} Nd5 {[%emt 0:05:54]} 13. e4 {[%emt 0:02:55]} Nxf4 {[%emt 0:01:03]} 14. gxf4 {[%emt 0:02:45]} Rd8 {[%emt 0:03:29]} 15. a3 {[%emt 0:04:39]} Bd7 {[%emt 0:02:45]} 16. Nc3 {[%emt 0:04:42]} Be8 {[%emt 0:04:20]} 17. b4 {[%emt 0:00:44]} b6 {[%emt 0:02:36]} 18. e5 {[%emt 0:02:37]} Rxd1+ {[%emt 0:06:48]} 19. Rxd1 {[%emt 0:02:07]} Rd8 {[%emt 0:01:09]} 20. Rxd8 {[%emt 0:01:52]} Nxd8 {[%emt 0:00:23]} 21. Nd4 {[%emt 0:00:24]} a5 {[%emt 0:06:29]} 22. bxa5 {[%emt 0:05:04]} bxa5 {[%emt 0:00:10]} 23. Ndb5 {[%emt 0:02:27]} Kf8 {[%emt 0:02:31]} 24. Kf1 {[%emt 0:01:03]} Nc6 {[%emt 0:05:08]} 25. Ke2 {[%emt 0:01:22]} f6 {[%emt 0:01:00]} 26. Nc7 {[%emt 0:05:42]} Nd8 {[%emt 0:07:33]} 27. Nxe8 {[%emt 0:01:09]} Kxe8 {[%emt 0:00:11]} 28. a4 {[%emt 0:02:21]} Nf7 {[%emt 0:05:49]} 29. exf6 {[%emt 0:00:48]} gxf6 {[%emt 0:00:34]} 30. Nb5 {[%emt 0:00:31]} Bc5 {[%emt 0:01:43]} 31. Be4 {[%emt 0:01:05]} f5 {[%emt 0:02:49]} 32. Bd3 {[%emt 0:00:17]} Kd7 {[%emt 0:05:10]} 33. Bc4 {[%emt 0:01:20]} Nh8 {[%emt 0:03:05]} 34. Kf3 {[%emt 0:04:11]} Ng6 {[%emt 0:00:26]} 35. Nc3 {[%emt 0:01:38]} Ne7 {[%emt 0:02:09]} 36. Nd1 {[%emt 0:03:09]} Kd6 {[%emt 0:01:43]} 37. Ne3 {[%emt 0:02:34]} Nc6 {[%emt 0:01:13]} 38. Kg3 {[%emt 0:02:43]} Bd4 {[%emt 0:04:56]} 39. Nc2 {[%emt 0:01:27]} Bf6 {[%emt 0:00:00]} 40. Kf3 {[%emt 0:00:00]} Ne7 {[%emt 0:00:00]} 41. Ne3 {[%emt 0:01:57]} Bd4 {[%emt 0:03:33]} 42. Ke2 {[%emt 0:01:05]} Ng8 {[%emt 0:02:30]} 43. Nxf5+ {[%emt 0:00:32]} exf5 {[%emt 0:00:51]} 44. Bxg8 {[%emt 0:00:11]} h6 {[%emt 0:00:08]} 1/2-1/2

[Event "WSTCC-65 2020"]
[Site "Prague"]
[Date "2020.03.10"]
[Round "5.46"]
[White "Christiansen, Jens Jorgen"]
[Black "Dovzhenko, Viktor"]
[Result "0-1"]
[ECO "B06"]
[WhiteElo "2042"]
[BlackElo "2069"]
[Annotator "ChessBase"]
[PlyCount "78"]
[EventDate "2020.03.06"]
[EventType "team-tourn"]
[EventCountry "CZE"]
[SourceTitle "playchess.com"]
[Source "ChessBase"]
[SourceQuality "1"]
[TimeControl "40/5400+30:1800+30"]

1. d4 {[%emt 0:00:00]} g6 {[%emt 0:04:48]} 2. Nf3 {[%emt 0:00:00]} Bg7 {[%emt 0:00:13]} 3. e4 {[%emt 0:00:02]} d6 {[%emt 0:00:30]} 4. Nc3 {[%emt 0:00:24]} a6 {[%emt 0:00:32]} 5. Bc4 {[%emt 0:00:24]} b5 {[%emt 0:01:42]} 6. Bb3 {[%emt 0:00:10]} e6 {[%emt 0:00:08]} 7. Bg5 {[%emt 0:12:56]} Ne7 {[%emt 0:00:14]} 8. a4 {[%emt 0:05:15]} b4 {[%emt 0:00:35]} 9. Ne2 {[%emt 0:00:06]} Bb7 {[%emt 0:00:42]} 10. Ng3 {[%emt 0:00:21]} Nd7 {[%emt 0:01:19]} 11. a5 {[%emt 0:07:37]} O-O {[%emt 0:10:20]} 12. Qd2 {[%emt 0:07:48]} c5 {[%emt 0:04:19]} 13. c3 {[%emt 0:02:15]} bxc3 {[%emt 0:01:55]} 14. bxc3 {[%emt 0:00:12]} cxd4 {[%emt 0:05:47]} 15. cxd4 {[%emt 0:00:14]} Nf6 {[%emt 0:00:27]} 16. Qe3 {[%emt 0:02:54]} d5 {[%emt 0:08:09]} 17. e5 {[%emt 0:07:11]} Ne4 {[%emt 0:00:22]} 18. Nxe4 {[%emt 0:01:59]} dxe4 {[%emt 0:00:01]} 19. Nd2 {[%emt 0:00:30]} h6 {[%emt 0:00:19]} 20. Bxe7 {[%emt 0:00:42]} Qxe7 {[%emt 0:00:01]} 21. O-O {[%emt 0:00:31]} Rfd8 {[%emt 0:01:18]} 22. Nc4 {[%emt 0:05:46]} Qb4 {[%emt 0:04:56]} 23. Ra4 {[%emt 0:07:07]} Qe7 {[%emt 0:05:22]} 24. Nb6 {[%emt 0:03:09]} Rab8 {[%emt 0:00:47]} 25. Rc1 {[%emt 0:00:49]} Bxe5 {[%emt 0:00:47]} 26. dxe5 {[%emt 0:02:16]} Rd3 {[%emt 0:01:36]} 27. Qxh6 {[%emt 0:00:25]} Rxb3 {[%emt 0:00:26]} 28. Rac4 {[%emt 0:00:36]} Rd8 {[%emt 0:04:34]} 29. h4 {[%emt 0:01:39]} e3 {[%emt 0:06:33]} 30. fxe3 {[%emt 0:00:39]} Qa3 {[%emt 0:04:33]} 31. Qg5 {[%emt 0:09:55]} Rbd3 {[%emt 0:00:53]} 32. e4 {[%emt 0:08:02]} Qxa5 {[%emt 0:04:43]} 33. Nc8 {[%emt 0:02:07]} Rd1+ {[%emt 0:01:48]} 34. Rxd1 {[%emt 0:01:09]} Rxd1+ {[%emt 0:00:14]} 35. Kh2 {[%emt 0:00:01]} Qe1 {[%emt 0:00:35]} 36. Ne7+ {[%emt 0:06:41]} Kh7 {[%emt 0:01:12]} 37. Qg4 {[%emt 0:03:42]} Qg1+ {[%emt 0:00:55]} 38. Kg3 {[%emt 0:00:19]} Rd3+ {[%emt 0:00:26]} 39. Kf4 {[%emt 0:00:15]} Qe3# {[%emt 0:00:04]} 0-1

[Event "WSTCC-65 2020"]
[Site "Prague"]
[Date "2020.03.10"]
[Round "5.47"]
[White "Chubar, Vladimir"]
[Black "Christiansen, Arne"]
[Result "1/2-1/2"]
[ECO "D02"]
[WhiteElo "1991"]
[BlackElo "2016"]
[Annotator "ChessBase"]
[PlyCount "44"]
[EventDate "2020.03.06"]
[EventType "team-tourn"]
[EventCountry "CZE"]
[SourceTitle "playchess.com"]
[Source "ChessBase"]
[SourceQuality "1"]
[TimeControl "40/5400+30:1800+30"]

1. Nf3 {[%emt 0:03:19]} Nf6 {[%emt 0:00:00]} 2. d4 {[%emt 0:00:13]} d5 {[%emt 0:00:01]} 3. Bf4 {[%emt 0:00:08]} c5 {[%emt 0:00:14]} 4. e3 {[%emt 0:00:21]} Nc6 {[%emt 0:00:11]} 5. Nbd2 {[%emt 0:00:22]} e6 {[%emt 0:02:01]} 6. c3 {[%emt 0:00:46]} Be7 {[%emt 0:02:00]} 7. h3 {[%emt 0:00:51]} O-O {[%emt 0:00:46]} 8. Bd3 {[%emt 0:00:33]} Qb6 {[%emt 0:01:14]} 9. Rb1 {[%emt 0:01:08]} cxd4 {[%emt 0:02:26]} 10. exd4 {[%emt 0:01:13]} Bd7 {[%emt 0:00:51]} 11. O-O {[%emt 0:02:13]} Rac8 {[%emt 0:00:30]} 12. Re1 {[%emt 0:02:43]} Rfd8 {[%emt 0:01:33]} 13. Bg5 {[%emt 0:01:08]} Qc7 {[%emt 0:04:32]} 14. Ne5 {[%emt 0:01:59]} a6 {[%emt 0:03:37]} 15. Ndf3 {[%emt 0:01:36]} Be8 {[%emt 0:03:24]} 16. a3 {[%emt 0:05:48]} Na5 {[%emt 0:07:38]} 17. b4 {[%emt 0:07:35]} Nc4 {[%emt 0:00:27]} 18. Nxc4 {[%emt 0:01:00]} dxc4 {[%emt 0:00:09]} 19. Bc2 {[%emt 0:00:28]} Nd5 {[%emt 0:03:04]} 20. Qd2 {[%emt 0:01:44]} Bxg5 {[%emt 0:07:17]} 21. Nxg5 {[%emt 0:04:33]} h6 {[%emt 0:00:46]} 22. Nf3 Qf4 1/2-1/2

[Event "WSTCC-65 2020"]
[Site "Prague"]
[Date "2020.03.10"]
[Round "5.48"]
[White "Jorgensen, Brian Jorgen"]
[Black "Karnaukh, Anatolij"]
[Result "1-0"]
[ECO "A08"]
[WhiteElo "2217"]
[BlackElo "2087"]
[Annotator "ChessBase"]
[PlyCount "91"]
[EventDate "2020.03.06"]
[EventType "team-tourn"]
[EventCountry "CZE"]
[SourceTitle "playchess.com"]
[Source "ChessBase"]
[SourceQuality "1"]
[TimeControl "40/5400+30:1800+30"]

1. Nf3 {[%emt 0:00:00]} d5 2. g3 {[%emt 0:00:23]} c5 {[%emt 0:01:37]} 3. Bg2 {[%emt 0:00:11]} Nc6 {[%emt 0:00:05]} 4. d4 {[%emt 0:00:42]} cxd4 {[%emt 0:01:43]} 5. Nxd4 {[%emt 0:00:17]} e5 {[%emt 0:02:07]} 6. Nxc6 bxc6 7. c4 {[%emt 0:02:36]} Nf6 {[%emt 0:05:04]} 8. O-O {[%emt 0:03:36]} Be6 {[%emt 0:02:27]} 9. Nc3 {[%emt 0:01:04]} Qd7 {[%emt 0:03:59]} 10. Qa4 {[%emt 0:01:58]} Rc8 {[%emt 0:02:25]} 11. cxd5 {[%emt 0:04:54]} cxd5 {[%emt 0:00:25]} 12. Qxd7+ {[%emt 0:00:21]} Kxd7 {[%emt 0:01:29]} 13. Rd1 {[%emt 0:03:12]} Bc5 {[%emt 0:13:24]} 14. h3 {[%emt 0:36:42]} d4 {[%emt 0:10:36]} 15. Na4 {[%emt 0:01:52]} Bd6 {[%emt 0:08:00]} 16. e3 {[%emt 0:00:36]} Bf5 {[%emt 0:00:26]} 17. exd4 {[%emt 0:02:04]} Bc2 {[%emt 0:00:21]} 18. Rd2 {[%emt 0:00:43]} exd4 {[%emt 0:06:54]} 19. Rxd4 {[%emt 0:00:30]} Bxa4 {[%emt 0:01:57]} 20. Rxa4 {[%emt 0:00:13]} Rc7 {[%emt 0:01:03]} 21. Be3 {[%emt 0:00:38]} Rb8 {[%emt 0:01:18]} 22. b3 {[%emt 0:01:36]} Rb5 {[%emt 0:02:54]} 23. Rxa7 {[%emt 0:05:49]} Rxa7 {[%emt 0:00:28]} 24. Bxa7 {[%emt 0:00:09]} Nd5 {[%emt 0:02:28]} 25. Bxd5 {[%emt 0:01:58]} Rxd5 {[%emt 0:00:11]} 26. Be3 {[%emt 0:01:19]} Kc6 {[%emt 0:01:17]} 27. Rc1+ {[%emt 0:01:19]} Kb5 {[%emt 0:00:19]} 28. Kg2 {[%emt 0:00:50]} f5 {[%emt 0:01:01]} 29. Rc4 {[%emt 0:01:21]} Ba3 {[%emt 0:01:07]} 30. h4 {[%emt 0:04:51]} h5 {[%emt 0:00:20]} 31. Kf3 {[%emt 0:00:26]} Rd6 {[%emt 0:02:19]} 32. Kf4 {[%emt 0:06:14]} g6 {[%emt 0:00:18]} 33. Rc8 {[%emt 0:02:47]} Ra6 {[%emt 0:00:58]} 34. Kf3 {[%emt 0:02:33]} Bd6 {[%emt 0:00:50]} 35. Rc2 {[%emt 0:01:14]} Ba3 {[%emt 0:00:59]} 36. Bd4 {[%emt 0:02:39]} Bd6 {[%emt 0:01:04]} 37. Re2 {[%emt 0:00:50]} Bc7 {[%emt 0:01:27]} 38. Re7 {[%emt 0:02:29]} Rc6 {[%emt 0:00:47]} 39. a3 {[%emt 0:01:53]} f4 {[%emt 0:04:52]} 40. gxf4 {[%emt 0:00:43]} Rc1 {[%emt 0:00:15]} 41. Rg7 {[%emt 0:02:42]} Bd6 {[%emt 0:02:35]} 42. b4 {[%emt 0:00:36]} Rd1 {[%emt 0:00:48]} 43. Be3 {[%emt 0:00:43]} Rh1 {[%emt 0:01:39]} 44. Rxg6 {[%emt 0:00:29]} Be7 {[%emt 0:00:07]} 45. Re6 Bxh4 46. Re5+ 1-0

[Event "WSTCC-65 2020"]
[Site "Prague"]
[Date "2020.03.11"]
[Round "6.8"]
[White "Gruzmann, Boris"]
[Black "Zhelnin, Vladimir V"]
[Result "1/2-1/2"]
[ECO "B06"]
[WhiteElo "2206"]
[BlackElo "2404"]
[Annotator "RC"]
[PlyCount "81"]
[EventDate "2020.03.06"]
[EventType "team-tourn"]
[EventCountry "CZE"]
[SourceTitle "playchess.com"]
[Source "ChessBase"]
[SourceQuality "1"]
[TimeControl "40/5400+30:1800+30"]

1. e4 {[%emt 0:00:00]} g6 {[%emt 0:00:00]} 2. d4 {[%emt 0:00:00]} Bg7 {[%emt 0:00:00]} 3. Nc3 {[%emt 0:00:06]} d5 {[%emt 0:00:48]} 4. Nge2 {[%emt 0:02:11]} dxe4 {[%emt 0:03:59]} 5. Nxe4 {[%emt 0:00:26]} Nd7 {[%emt 0:02:13]} 6. N2c3 {[%emt 0:09:51]} Ndf6 {[%emt 0:06:59]} 7. Nxf6+ {[%emt 0:04:14]} Nxf6 {[%emt 0:01:00]} 8. Be2 {[%emt 0:00:19]} c6 {[%emt 0:05:10]} 9. O-O {[%emt 0:03:39]} O-O {[%emt 0:00:06]} 10. Be3 {[%emt 0:01:23]} Bf5 {[%emt 0:04:14]} 11. h3 {[%emt 0:05:43]} Qd7 {[%emt 0:11:35]} 12. Qd2 {[%emt 0:00:54]} Rad8 {[%emt 0:00:35]} 13. Rfd1 {[%emt 0:01:03]} Rfe8 {[%emt 0:01:49]} 14. Bf3 {[%emt 0:08:40]} Qc7 {[%emt 0:05:29]} 15. Qe2 {[%emt 0:02:08]} h5 {[%emt 0:07:17]} 16. Rd2 {[%emt 0:06:35]} Rd7 {[%emt 0:10:51]} 17. g4 {[%emt 0:08:40]} hxg4 {[%emt 0:00:32]} 18. hxg4 {[%emt 0:00:11]} Be6 {[%emt 0:00:08]} 19. g5 {[%emt 0:00:32]} Nd5 {[%emt 0:00:15]} 20. Nxd5 {[%emt 0:01:30]} Bxd5 {[%emt 0:07:34]} 21. c4 {[%emt 0:04:29]} Bxf3 {[%emt 0:00:36]} 22. Qxf3 {[%emt 0:00:10]} Red8 {[%emt 0:07:03]} 23. Rad1 {[%emt 0:03:26]} Qa5 {[%emt 0:01:47]} 24. b3 {[%emt 0:01:00]} e6 {[%emt 0:06:30]} 25. Qe4 {[%emt 0:03:59]} a6 {[%emt 0:04:12]} 26. Kg2 {[%emt 0:04:38]} Qf5 {[%emt 0:00:56]} 27. Qxf5 {[%emt 0:00:55]} gxf5 {[%emt 0:00:04]} 28. f4 {[%emt 0:10:58]} Kh7 {[%emt 0:02:09]} 29. d5 {[%emt 0:01:12]} cxd5 {[%emt 0:00:30]} 30. Bb6 {[%emt 0:00:08]} Rc8 {[%emt 0:02:38]} 31. cxd5 {[%emt 0:00:12]} exd5 {[%emt 0:04:09]} 32. Rxd5 {[%emt 0:09:19]} Rc2+ {[%emt 0:00:16]} 33. Kf3 {[%emt 0:00:20]} Rxd5 {[%emt 0:00:19]} 34. Rxd5 {[%emt 0:00:10]} Rxa2 {[%emt 0:00:09]} 35. Bc5 {[%emt 0:02:28]} Rc2 {[%emt 0:02:17]} 36. b4 {[%emt 0:00:24]} Kg6 {[%emt 0:00:44]} 37. Rd7 {[%emt 0:00:58]} a5 {[%emt 0:00:59]} 38. Rxb7 {[%emt 0:01:25]} axb4 {[%emt 0:00:14]} 39. Bxb4 {[%emt 0:00:40]} Rb2 {[%emt 0:00:43]} 40. Rb6+ {[%emt 0:00:00]} Kh5 {[%emt 0:00:00]} 41. Bc5 {[%emt 0:00:50]} 1/2-1/2

[Event "WSTCC-65 2020"]
[Site "Prague"]
[Date "2020.03.11"]
[Round "6.19"]
[White "Schoeneberg, Manfred"]
[Black "Mlynek, Petr"]
[Result "1/2-1/2"]
[ECO "B17"]
[WhiteElo "2144"]
[BlackElo "2053"]
[Annotator "ChessBase"]
[PlyCount "28"]
[EventDate "2020.03.06"]
[EventType "team-tourn"]
[EventCountry "CZE"]
[SourceTitle "playchess.com"]
[Source "ChessBase"]
[SourceQuality "1"]
[TimeControl "40/5400+30:1800+30"]

1. e4 {[%emt 0:00:00]} c6 {[%emt 0:00:00]} 2. d4 {[%emt 0:00:50]} d5 {[%emt 0:00:00]} 3. Nc3 {[%emt 0:00:05]} dxe4 {[%emt 0:00:00]} 4. Nxe4 {[%emt 0:00:06]} Nd7 {[%emt 0:00:09]} 5. Nf3 {[%emt 0:01:41]} Ngf6 {[%emt 0:00:16]} 6. Ng3 {[%emt 0:02:14]} e6 {[%emt 0:01:02]} 7. Bd3 {[%emt 0:03:57]} c5 {[%emt 0:00:19]} 8. O-O {[%emt 0:05:55]} cxd4 {[%emt 0:01:25]} 9. Nxd4 {[%emt 0:00:29]} Bc5 {[%emt 0:03:10]} 10. Nb3 {[%emt 0:01:31]} Bb6 {[%emt 0:03:39]} 11. Qe2 {[%emt 0:03:03]} O-O {[%emt 0:00:28]} 12. Be3 {[%emt 0:04:45]} Bxe3 {[%emt 0:02:03]} 13. Qxe3 {[%emt 0:01:32]} b6 {[%emt 0:03:38]} 14. Rad1 {[%emt 0:06:43]} Qc7 {[%emt 0:00:28]} 1/2-1/2